fUSD/lending_fUSD_20251002
["ID","MTS","AMOUNT","RATE_DAILY","PERIOD"]
[388870236,1759445450095,-213.493516,0.00019712,2]
[388870237,1759445450104,-213.493516,0.00019712,2]
[388870238,1759445450114,-213.493516,0.00019712,2]
[388870239,1759445450123,-151.0,0.00019712,2]
[388870240,1759445450132,-151.0,0.00019712,2]
[388870241,1759445450142,-151.0,0.00019712,2]
[388870242,1759445450151,-151.0,0.00019712,2]
[388870243,1759445450160,-151.0,0.00019712,2]
[388870244,1759445450169,-151.0,0.00019712,2]
[388870245,1759445450178,-151.0,0.00019712,2]
[388870246,1759445450188,-151.0,0.00019712,2]
[388870247,1759445450197,-151.0,0.00019712,2]
[388870248,1759445450206,-151.0,0.00019712,2]
[388870249,1759445450215,-151.0,0.00019712,2]
[388870250,1759445450226,-188.09463,0.00019712,2]
[388870251,1759445450235,-188.09463,0.00019712,2]
[388870252,1759445450244,-188.09463,0.00019712,2]
[388870253,1759445450253,-188.09463,0.00019712,2]
[388870254,1759445450262,-151.0,0.00019712,2]
[388870255,1759445450271,-151.0,0.00019712,2]
[388870256,1759445450280,-151.0,0.00019712,2]
[388870257,1759445450289,-151.0,0.00019712,2]
[388870258,1759445450299,-974.472448,0.00019712,2]
[388870259,1759445450308,-974.472448,0.00019712,2]
[388870260,1759445450317,-974.472448,0.00019712,2]
[388870261,1759445450327,-974.472448,0.00019712,2]
[388870262,1759445450336,-151.0,0.00019712,2]
[388870263,1759445450345,-1920.257684,0.00019712,2]
[388870264,1759445450354,-1920.257684,0.00019712,2]
[388870265,1759445450363,-1920.257684,0.00019712,2]
[388870266,1759445450372,-926.298043,0.00019712,2]
[388870267,1759445450382,-926.298043,0.00019712,2]
[388870268,1759445450391,-1920.257684,0.00019712,2]
[388870269,1759445450400,-926.298043,0.00019712,2]
[388870270,1759445450410,-926.298043,0.00019712,2]
[388870271,1759445450420,-2304.292117,0.00019712,2]
[388870272,1759445450429,-2304.292117,0.00019712,2]
[388870273,1759445450439,-151.0,0.00019712,2]
[388870274,1759445450448,-2304.292117,0.00019712,2]
[388870275,1759445450457,-2304.292117,0.00019712,2]
[388870276,1759445450468,-151.0,0.00019712,2]
[388870277,1759445450478,-151.0,0.00019712,2]
[388870278,1759445450488,-151.0,0.00019712,2]
[388870279,1759445450498,-482.236905,0.00019712,2]
[388870280,1759445450508,-151.0,0.00019712,2]
[388870281,1759445450517,-186.540084,0.00019712,2]
[388870282,1759445450528,-482.236905,0.00019712,2]
[388870283,1759445450539,-391.109705,0.00019712,2]
[388870284,1759445450549,-254.556275,0.00019712,2]
[388870285,1759445450559,-482.236905,0.00019712,2]
[388870286,1759445450570,-391.109705,0.00019712,2]
[388870287,1759445450580,-254.556275,0.00019712,2]
[388870288,1759445450591,-482.236905,0.00019712,2]
[388870289,1759445450599,-391.109705,0.00019712,2]
[388870290,1759445450608,-254.556275,0.00019712,2]
[388870291,1759445450618,-391.109705,0.00019712,2]
[388870292,1759445450627,-254.556275,0.00019712,2]
[388870293,1759445450637,-898.496808,0.00019712,2]
[388870294,1759445450646,-898.496808,0.00019712,2]
[388870295,1759445450656,-898.496808,0.00019712,2]
[388870296,1759445450666,-1385.737819,0.00019712,2]
[388870297,1759445450675,-898.496808,0.00019712,2]
[388870298,1759445450685,-1385.737819,0.00019712,2]
[388870299,1759445450695,-1385.737819,0.00019712,2]
[388870300,1759445450705,-1385.737819,0.00019712,2]
[388870301,1759445450717,-151.0,0.00019712,2]
[388870302,1759445450727,-249.055512,0.00019712,2]
[388870303,1759445450736,-249.055512,0.00019712,2]
[388870304,1759445450745,-249.055512,0.00019712,2]
[388870305,1759445450755,-249.055512,0.00019712,2]
[388870306,1759445450764,-402.111349,0.00019712,2]
[388870307,1759445450774,-151.0,0.00019712,2]
[388870308,1759445450783,-402.111349,0.00019712,2]
[388870309,1759445450792,-402.111349,0.00019712,2]
[388870310,1759445450801,-402.111349,0.00019712,2]
[388870311,1759445450811,-860.13847109,0.00019721,2]
[388870312,1759445450820,-151.0,0.00019726,2]
[388870313,1759445450832,-377.579648,0.00019756,2]
[388870314,1759445450841,-377.579648,0.00019756,2]
[388870315,1759445450850,-377.579648,0.00019756,2]
[388870316,1759445450864,-377.579648,0.00019756,2]
[388870317,1759445450874,-749.039558,0.00019756,2]
[388870318,1759445450885,-749.039558,0.00019756,2]
[388870319,1759445450894,-749.039558,0.00019756,2]
[388870320,1759445450904,-749.039558,0.00019756,2]
[388870321,1759445450913,-151.0,0.00019756,2]
[388870322,1759445450923,-151.0,0.00019756,2]
[388870323,1759445450933,-2090.462866,0.00019756,2]
[388870324,1759445450943,-151.0,0.00019756,2]
[388870325,1759445450952,-151.0,0.00019756,2]
[388870326,1759445450961,-2090.462866,0.00019756,2]
[388870327,1759445450970,-151.0,0.00019756,2]
[388870328,1759445450979,-151.0,0.00019756,2]
[388870329,1759445450988,-2090.462866,0.00019756,2]
[388870330,1759445450998,-151.0,0.00019756,2]
[388870331,1759445451009,-2090.462866,0.00019756,2]
[388870332,1759445451019,-197.608038,0.00019756,2]
[388870333,1759445451030,-197.608038,0.00019756,2]
[388870334,1759445451041,-197.608038,0.00019756,2]
[388870335,1759445451051,-272.406188,0.00019756,2]
[388870336,1759445451061,-151.0,0.00019756,2]
[388870337,1759445451070,-315.593598,0.00019756,2]
[388870338,1759445451080,-197.608038,0.00019756,2]
[388870339,1759445451090,-272.406188,0.00019756,2]
[388870340,1759445451099,-315.593598,0.00019756,2]
[388870341,1759445451109,-272.406188,0.00019756,2]
[388870342,1759445451119,-151.0,0.00019756,2]
[388870343,1759445451129,-315.593598,0.00019756,2]
[388870344,1759445451139,-315.593598,0.00019756,2]
[388870345,1759445451148,-272.406188,0.00019756,2]
[388870346,1759445451157,-1257.54295,0.00019756,2]
[388870347,1759445451166,-1257.54295,0.00019756,2]
[388870348,1759445451175,-1257.54295,0.00019756,2]
[388870349,1759445451184,-1257.54295,0.00019756,2]
[388870350,1759445451193,-177.2828,0.00019756,2]
[388870351,1759445451203,-177.2828,0.00019756,2]
[388870352,1759445451212,-177.2828,0.00019756,2]
[388870353,1759445451221,-177.2828,0.00019756,2]
[388870354,1759445451231,-728.6876,0.00019756,2]
[388870355,1759445451240,-728.6876,0.00019756,2]
[388870356,1759445451249,-728.6876,0.00019756,2]
[388870357,1759445451258,-728.6876,0.00019756,2]
[388870358,1759445451267,-152.093072,0.00019756,2]
[388870359,1759445451276,-152.093072,0.00019756,2]
[388870360,1759445451285,-152.093072,0.00019756,2]
[388870361,1759445451294,-152.093072,0.00019756,2]
[388870362,1759445451303,-203.569052,0.00019756,2]
[388870363,1759445451313,-203.569052,0.00019756,2]
[388870364,1759445451322,-203.569052,0.00019756,2]
[388870365,1759445451331,-151.0,0.00019756,2]
[388870366,1759445451340,-203.569052,0.00019756,2]
[388870367,1759445451349,-151.0,0.00019756,2]
[388870368,1759445451358,-150.0,0.00019756,2]
[388870369,1759445451368,-150.0,0.00019756,2]
[388870370,1759445451377,-1196.84,0.00019756,2]
[388870371,1759445451386,-175.59,0.00019756,2]
[388870372,1759445451395,-150.0,0.00019756,2]
[388870373,1759445451404,-150.0,0.00019756,2]
[388870374,1759445451415,-150.0,0.00019756,2]
[388870375,1759445451423,-150.0,0.00019756,2]
[388870376,1759445451433,-2389.36,0.00019756,2]
[388870377,1759445451442,-1192.34,0.00019756,2]
[388870378,1759445451451,-150.0,0.00019779,2]
[388870379,1759445451460,-545.29,0.00019779,2]
[388870380,1759445451469,-432.66,0.00019779,2]
[388870381,1759445451478,-1000.0,0.00019788,2]
[388870382,1759445451487,-293.5443736,0.000198,2]
[388870383,1759445451497,-1000.0,0.00019857,2]
[388870384,1759445451506,-1542.05,0.00019901,2]
[388870385,1759445451516,-3457.0,0.00019903,2]
[388870386,1759445451526,-500.0,0.00019903,2]
[388870387,1759445451535,-500.0,0.00019903,2]
[388870388,1759445451544,-500.0,0.00019903,2]
[388870389,1759445451553,-500.0,0.00019903,2]
[388870390,1759445451563,-500.0,0.00019903,2]
[388870391,1759445451572,-500.0,0.00019903,2]
[388870392,1759445451581,-500.0,0.00019903,2]
[388870393,1759445451590,-500.0,0.00019903,2]
[388870394,1759445451599,-500.0,0.00019903,2]
[388870395,1759445451608,-500.0,0.00019903,2]
[388870396,1759445451618,-500.0,0.00019903,2]
[388870397,1759445451627,-500.0,0.00019903,2]
[388870398,1759445451636,-500.0,0.00019903,2]
[388870399,1759445451645,-500.0,0.00019903,2]
[388870400,1759445451654,-500.0,0.00019903,2]
[388870401,1759445451663,-500.0,0.00019903,2]
[388870402,1759445451672,-500.0,0.00019903,2]
[388870403,1759445451681,-500.0,0.00019903,2]
[388870404,1759445451691,-500.0,0.00019903,2]
[388870405,1759445451700,-500.0,0.00019903,2]
[388870406,1759445451709,-500.0,0.00019903,2]
[388870407,1759445451718,-500.0,0.00019903,2]
[388870408,1759445451727,-500.0,0.00019903,2]
[388870409,1759445451736,-500.0,0.00019903,2]
[388870410,1759445451745,-500.0,0.00019903,2]
[388870411,1759445451755,-500.0,0.00019903,2]
[388870412,1759445451763,-500.0,0.00019903,2]
[388870413,1759445451772,-500.0,0.00019903,2]
[388870414,1759445451781,-500.0,0.00019903,2]
[388870415,1759445451791,-500.0,0.00019903,2]
[388870416,1759445451800,-432.37056738,0.00019903,2]
[388870417,1759445452625,-67.62943262,0.00019903,2]
[388870418,1759445452635,-293.03056738,0.00019903,2]
[388870419,1759445452663,-206.96943262,0.00019903,2]
[388870420,1759445452673,-500.0,0.00019903,2]
[388870421,1759445452682,-500.0,0.00019903,2]
[388870422,1759445452692,-500.0,0.00019903,2]
[388870423,1759445452700,-500.0,0.00019903,2]
[388870424,1759445452710,-500.0,0.00019903,2]
[388870425,1759445452720,-500.0,0.00019903,2]
[388870426,1759445452729,-500.0,0.00019903,2]
[388870427,1759445452738,-500.0,0.00019903,2]
[388870428,1759445452747,-500.0,0.00019903,2]
[388870429,1759445452757,-500.0,0.00019903,2]
[388870430,1759445452766,-500.0,0.00019903,2]
[388870431,1759445452775,-500.0,0.00019903,2]
[388870432,1759445452784,-500.0,0.00019903,2]
[388870433,1759445452794,-500.0,0.00019903,2]
[388870434,1759445452803,-500.0,0.00019903,2]
[388870435,1759445452812,-500.0,0.00019903,2]
[388870436,1759445452822,-500.0,0.00019903,2]
[388870437,1759445452831,-500.0,0.00019903,2]
[388870438,1759445452841,-500.0,0.00019903,2]
[388870439,1759445452850,-500.0,0.00019903,2]
[388870440,1759445452860,-500.0,0.00019903,2]
[388870441,1759445452874,-500.0,0.00019903,2]
[388870442,1759445452885,-500.0,0.00019903,2]
[388870443,1759445452895,-500.0,0.00019903,2]
[388870444,1759445452905,-500.0,0.00019903,2]
[388870445,1759445452914,-500.0,0.00019903,2]
[388870446,1759445452924,-500.0,0.00019903,2]
[388870447,1759445452933,-500.0,0.00019903,2]
[388870448,1759445452944,-500.0,0.00019903,2]
[388870449,1759445452953,-500.0,0.00019903,2]
[388870450,1759445452963,-500.0,0.00019903,2]
[388870451,1759445452972,-500.0,0.00019903,2]
[388870452,1759445452982,-500.0,0.00019903,2]
[388870453,1759445452992,-500.0,0.00019903,2]
[388870454,1759445453002,-500.0,0.00019903,2]
[388870455,1759445453012,-500.0,0.00019903,2]
[388870456,1759445453022,-500.0,0.00019903,2]
[388870457,1759445453031,-500.0,0.00019903,2]
[388870458,1759445453041,-500.0,0.00019903,2]
[388870459,1759445453053,-500.0,0.00019903,2]
[388870460,1759445453063,-500.0,0.00019903,2]
[388870461,1759445453073,-500.0,0.00019903,2]
[388870462,1759445453083,-500.0,0.00019903,2]
[388870463,1759445453093,-500.0,0.00019903,2]
[388870464,1759445453103,-500.0,0.00019903,2]
[388870465,1759445453113,-500.0,0.00019903,2]
[388870466,1759445453123,-500.0,0.00019903,2]
[388870467,1759445453134,-500.0,0.00019903,2]
[388870468,1759445453144,-500.0,0.00019903,2]
[388870469,1759445453154,-500.0,0.00019903,2]
[388870470,1759445453164,-500.0,0.00019903,2]
[388870471,1759445453174,-500.0,0.00019903,2]
[388870472,1759445453184,-500.0,0.00019903,2]
[388870473,1759445453193,-500.0,0.00019903,2]
[388870474,1759445453203,-500.0,0.00019903,2]
[388870475,1759445453213,-500.0,0.00019903,2]
[388870476,1759445453223,-500.0,0.00019903,2]
[388870477,1759445453232,-500.0,0.00019903,2]
[388870478,1759445453241,-500.0,0.00019903,2]
[388870479,1759445453250,-500.0,0.00019903,2]
[388870480,1759445453260,-500.0,0.00019903,2]
[388870481,1759445453270,-500.0,0.00019903,2]
[388870482,1759445453280,-500.0,0.00019903,2]
[388870483,1759445453290,-500.0,0.00019903,2]
[388870484,1759445453299,-500.0,0.00019903,2]
[388870485,1759445453310,-500.0,0.00019903,2]
[388870486,1759445453320,-500.0,0.00019903,2]
[388870487,1759445453329,-500.0,0.00019903,2]
[388870488,1759445453339,-500.0,0.00019903,2]
[388870489,1759445453349,-500.0,0.00019903,2]
[388870490,1759445453359,-500.0,0.00019903,2]
[388870491,1759445453368,-500.0,0.00019903,2]
[388870492,1759445453379,-500.0,0.00019903,2]
[388870493,1759445453388,-500.0,0.00019903,2]
[388870494,1759445453398,-500.0,0.00019903,2]
[388870495,1759445453408,-500.0,0.00019903,2]
[388870496,1759445453417,-500.0,0.00019903,2]
[388870497,1759445453428,-500.0,0.00019903,2]
[388870498,1759445453438,-500.0,0.00019903,2]
[388870499,1759445453447,-500.0,0.00019903,2]
[388870500,1759445453456,-500.0,0.00019903,2]
[388870501,1759445453467,-500.0,0.00019903,2]
[388870502,1759445453476,-500.0,0.00019903,2]
[388870503,1759445453485,-500.0,0.00019903,2]
[388870504,1759445453495,-500.0,0.00019903,2]
[388870505,1759445453504,-500.0,0.00019903,2]
[388870506,1759445453514,-500.0,0.00019903,2]
[388870507,1759445453523,-500.0,0.00019903,2]
[388870508,1759445453532,-500.0,0.00019903,2]
[388870509,1759445453542,-500.0,0.00019903,2]
[388870510,1759445453552,-500.0,0.00019903,2]
[388870511,1759445453561,-500.0,0.00019903,2]
[388870512,1759445453571,-500.0,0.00019903,2]
[388870513,1759445453582,-500.0,0.00019903,2]
[388870514,1759445453591,-500.0,0.00019903,2]
[388870515,1759445453600,-500.0,0.00019903,2]
[388870516,1759445453610,-500.0,0.00019903,2]
[388870517,1759445453619,-500.0,0.00019903,2]
[388870518,1759445453628,-500.0,0.00019903,2]
[388870519,1759445453638,-500.0,0.00019903,2]
[388870520,1759445453647,-500.0,0.00019903,2]
[388870521,1759445453656,-500.0,0.00019903,2]
[388870522,1759445453666,-500.0,0.00019903,2]
[388870523,1759445453675,-500.0,0.00019903,2]
[388870524,1759445453684,-500.0,0.00019903,2]
[388870525,1759445453694,-500.0,0.00019903,2]
[388870526,1759445453704,-500.0,0.00019903,2]
[388870527,1759445453714,-500.0,0.00019903,2]
[388870528,1759445453723,-500.0,0.00019903,2]
[388870529,1759445453733,-500.0,0.00019903,2]
[388870530,1759445453742,-500.0,0.00019903,2]
[388870531,1759445453751,-500.0,0.00019903,2]
[388870532,1759445453761,-500.0,0.00019903,2]
[388870533,1759445453771,-500.0,0.00019903,2]
[388870534,1759445453781,-500.0,0.00019903,2]
[388870535,1759445453790,-500.0,0.00019903,2]
[388870536,1759445453801,-500.0,0.00019903,2]
[388870537,1759445453811,-500.0,0.00019903,2]
[388870538,1759445453820,-500.0,0.00019903,2]
[388870539,1759445453831,-500.0,0.00019903,2]
[388870540,1759445453841,-500.0,0.00019903,2]
[388870541,1759445453850,-500.0,0.00019903,2]
[388870542,1759445453861,-500.0,0.00019903,2]
[388870543,1759445453874,-500.0,0.00019903,2]
[388870544,1759445453887,-953.0,0.00019903,2]
[388870545,1759445453897,-333.06456739,0.00019903,2]
[388870546,1759445453937,-307.9233313,0.0001842,2]
[388870547,1759445453949,-1010.9226687,0.0001842,2]
[388870548,1759445453959,-166.93543261,0.00019903,2]
[388870549,1759445453970,-500.0,0.00019903,2]
[388870550,1759445453981,-500.0,0.00019903,2]
[388870551,1759445453991,-500.0,0.00019903,2]
[388870552,1759445454001,-500.0,0.00019903,2]
[388870553,1759445454012,-500.0,0.00019903,2]
[388870554,1759445454023,-500.0,0.00019903,2]
[388870555,1759445454034,-500.0,0.00019903,2]
[388870556,1759445454044,-500.0,0.00019903,2]
[388870557,1759445454055,-500.0,0.00019903,2]
[388870558,1759445454065,-500.0,0.00019903,2]
[388870559,1759445454075,-500.0,0.00019903,2]
[388870560,1759445454085,-500.0,0.00019903,2]
[388870561,1759445454095,-500.0,0.00019903,2]
[388870562,1759445454106,-500.0,0.00019903,2]
[388870563,1759445454117,-500.0,0.00019903,2]
[388870564,1759445454129,-500.0,0.00019903,2]
[388870565,1759445454141,-500.0,0.00019903,2]
[388870566,1759445454151,-500.0,0.00019903,2]
[388870567,1759445454161,-500.0,0.00019903,2]
[388870568,1759445454171,-500.0,0.00019903,2]
[388870569,1759445454182,-500.0,0.00019903,2]
[388870570,1759445454192,-500.0,0.00019903,2]
[388870571,1759445454202,-500.0,0.00019903,2]
[388870572,1759445454212,-500.0,0.00019903,2]
[388870573,1759445454222,-500.0,0.00019903,2]
[388870574,1759445454232,-500.0,0.00019903,2]
[388870575,1759445454242,-500.0,0.00019903,2]
[388870576,1759445454252,-500.0,0.00019903,2]
[388870577,1759445454262,-500.0,0.00019903,2]
[388870578,1759445454272,-500.0,0.00019903,2]
[388870579,1759445454282,-500.0,0.00019903,2]
[388870580,1759445454292,-500.0,0.00019903,2]
[388870581,1759445454301,-500.0,0.00019903,2]
[388870582,1759445454310,-500.0,0.00019903,2]
[388870583,1759445454320,-500.0,0.00019903,2]
[388870584,1759445454329,-500.0,0.00019903,2]
[388870585,1759445454339,-500.0,0.00019903,2]
[388870586,1759445454348,-500.0,0.00019903,2]
[388870587,1759445454358,-500.0,0.00019903,2]
[388870588,1759445454368,-500.0,0.00019903,2]
[388870589,1759445454379,-500.0,0.00019903,2]
[388870590,1759445454389,-500.0,0.00019903,2]
[388870591,1759445454399,-500.0,0.00019903,2]
[388870592,1759445454410,-500.0,0.00019903,2]
[388870593,1759445454421,-500.0,0.00019903,2]
[388870594,1759445454432,-500.0,0.00019903,2]
[388870595,1759445454443,-500.0,0.00019903,2]
[388870596,1759445454455,-354.87441027,0.00019903,2]
[388870597,1759445461626,200.0,0.00032078,120]
[388870598,1759445468354,766.74,0.00030136,120]
[388870599,1759445584080,265.02381608,0.00032078,120]
[388870601,1759445730874,171.59578045,0.00032078,120]
[388870602,1759445763493,200.0,0.00032078,120]
[388870605,1759445911465,150.0,0.000112,2]
[388870606,1759445911886,150.0,0.0001238,2]
[388870607,1759445912267,180.0,0.0001357,2]
[388870608,1759445922631,1450.21,0.00026378,120]
[388870609,1759445934061,150.0,0.00030136,120]
[388870610,1759445949683,4908.23364549,0.00032078,60]
[388870611,1759445957463,-181.64399512,0.00016613,2]
[388870612,1759446009608,3988.87999999,0.00032068,60]
[388870613,1759446019625,224.0,0.00030136,120]
[388870614,1759446061520,200.0,0.00032068,120]
[388870615,1759446076663,1388.07,0.00022,90]
[388870618,1759446191019,734.8,0.00030136,120]
[388870620,1759446319072,3202.07,0.00032068,60]
[388870621,1759446361350,200.0,0.00032068,120]
[388870624,1759446628664,1000.0,0.00016438,2]
[388870626,1759446632422,-300.0,0.00016699,2]
[388870627,1759446632432,-1067.52832001,0.000167,2]
[388870628,1759446632442,-209.0,0.000167,2]
[388870629,1759446632451,-300.0,0.000167,2]
[388870630,1759446632461,-1200.0,0.000167,2]
[388870631,1759446632470,-189.04082857,0.000167,2]
[388870632,1759446632482,-5.95917143,0.000167,2]
[388870633,1759446632492,-250.0,0.000167,2]
[388870634,1759446632501,-2500.0,0.00016701,2]
[388870635,1759446632511,-1150.8003984,0.00016701,2]
[388870636,1759446632522,-849.1996016,0.00016701,2]
[388870637,1759446632532,-195.0,0.00016701,2]
[388870638,1759446632541,-248.71531821,0.00016718,2]
[388870639,1759446632550,-720.8127297,0.00016718,2]
[388870640,1759446632559,-621.78829552,0.00016718,2]
[388870641,1759446632568,-794.9389685,0.00016725,2]
[388870643,1759446632681,-0.3510315,0.00016725,2]
[388870644,1759446632690,-2500.0,0.00016725,2]
[388870645,1759446632699,-2500.0,0.00016725,2]
[388870646,1759446632708,-2000.0,0.00016725,2]
[388870647,1759446632718,-724.8810549,0.00016725,2]
[388870648,1759446632727,-195.0,0.00016725,2]
[388870650,1759446632736,-1000.0,0.000168,2]
[388870652,1759446632745,-795.29,0.00016999,2]
[388870653,1759446632755,-250.0,0.00017,2]
[388870654,1759446632763,-795.29,0.00017273,2]
[388870655,1759446632772,-398.0,0.00017492,2]
[388870656,1759446632781,-227.25,0.00017507,2]
[388870657,1759446632790,-951.38,0.00017516,2]
[388870658,1759446632799,-2104.15,0.00017522,2]
[388870659,1759446632808,-795.29,0.00017547,2]
[388870660,1759446632817,-1450.21,0.00017585,2]
[388870661,1759446632827,-398.0,0.00017586,2]
[388870662,1759446632836,-1942.67,0.00017588,2]
[388870663,1759446632845,-398.0,0.00017625,2]
[388870664,1759446632854,-233.93773957,0.00017644,2]
[388870665,1759446632863,-1000.0,0.00017644,2]
[388870666,1759446632872,-1000.0,0.00017644,2]
[388870667,1759446632881,-322.6107,0.00017644,2]
[388870668,1759446632891,-1000.0,0.00017644,2]
[388870669,1759446632900,-28.48660403,0.00017644,2]
[388870670,1759446632977,-971.51339597,0.00017644,2]
[388870671,1759446632986,-1000.0,0.00017644,2]
[388870672,1759446632995,-1000.0,0.00017644,2]
[388870673,1759446633004,-646.65982734,0.00017644,2]
[388870674,1759446633013,-1000.0,0.00017644,2]
[388870675,1759446633022,-430.99459696,0.00017644,2]
[388870676,1759446633031,-500.0,0.00017644,2]
[388870677,1759446633040,-500.0,0.00017644,2]
[388870678,1759446633049,-263.72593881,0.00017644,2]
[388870679,1759446633058,-151.0,0.00017644,2]
[388870680,1759446633067,-151.0,0.00017644,2]
[388870681,1759446633076,-288.12962481,0.00017644,2]
[388870682,1759446633085,-500.0,0.00017644,2]
[388870683,1759446633094,-500.0,0.00017644,2]
[388870684,1759446633104,-337.32838914,0.00017644,2]
[388870685,1759446633113,-151.0,0.00017644,2]
[388870686,1759446633122,-151.0,0.00017644,2]
[388870687,1759446633132,-226.70566694,0.00017644,2]
[388870688,1759446633141,-151.0,0.00017644,2]
[388870689,1759446633151,-3986.4808583,0.00017655,2]
[388870691,1759446638043,-500.0,0.00017642,2]
[388870692,1759446638053,-500.0,0.00017642,2]
[388870693,1759446638063,-500.0,0.00017642,2]
[388870694,1759446638073,-500.0,0.00017642,2]
[388870695,1759446638083,-500.0,0.00017642,2]
[388870696,1759446638093,-188.46019749,0.00017642,2]
[388870697,1759446638102,-500.0,0.00017642,2]
[388870698,1759446638112,-500.0,0.00017642,2]
[388870699,1759446638122,-500.0,0.00017642,2]
[388870700,1759446638132,-500.0,0.00017642,2]
[388870701,1759446638142,-500.0,0.00017642,2]
[388870702,1759446638152,-115.89791077,0.00017655,2]
[388870744,1759446640187,-213.36123093,0.00017655,2]
[388870745,1759446640199,-746.47,0.00017692,2]
[388870746,1759446640209,-398.0,0.00017693,2]
[388870747,1759446640219,-242.23,0.000177,2]
[388870748,1759446640229,-398.0,0.00017706,2]
[388870749,1759446640240,-14569.93876907,0.00017717,2]
[388870750,1759446640994,-690.94567573,0.00017717,2]
[388870751,1759446641006,-4129.71441029,0.00017717,2]
[388870752,1759446641019,-7035.78120401,0.00017717,2]
[388870753,1759446641029,-2485.57519533,0.00017718,2]
[388870754,1759446641044,-2982.61922181,0.00017718,2]
[388870755,1759446641055,-452.20582707,0.00017718,2]
[388870756,1759446641081,-623.49738546,0.00017718,2]
[388870757,1759446641092,-7063.20237033,0.00017718,2]
[388870758,1759446641102,-795.29,0.00017821,2]
[388870759,1759446641111,-168.0,0.00017916,2]
[388870760,1759446641120,-161.24058593,0.00018087,2]
[388870761,1759446641130,-795.29,0.00018095,2]
[388870762,1759446641139,-398.0,0.00018114,2]
[388870763,1759446641148,-301.36,0.00018115,2]
[388870764,1759446641158,-152.09,0.00018115,2]
[388870765,1759446641167,-150.94,0.00018115,2]
[388870766,1759446641177,-151.59,0.00018115,2]
[388870767,1759446641187,-304.53,0.00018116,2]
[388870768,1759446641196,-428.21,0.00018118,2]
[388870769,1759446641206,-444.17,0.00018118,2]
[388870770,1759446641216,-442.81,0.00018118,2]
[388870771,1759446641225,-434.53,0.00018118,2]
[388870772,1759446641235,-301.47,0.00018124,2]
[388870773,1759446641244,-303.69,0.00018124,2]
[388870774,1759446641254,-442.14,0.00018137,2]
[388870775,1759446641264,-437.89,0.00018137,2]
[388870776,1759446641274,-439.14,0.00018137,2]
[388870777,1759446641283,-429.2,0.00018137,2]
[388870778,1759446641293,-432.71,0.00018137,2]
[388870779,1759446641301,-398.0,0.00018156,2]
[388870780,1759446641311,-156.53,0.00018186,2]
[388870781,1759446641320,-300.57,0.00018263,2]
[388870782,1759446641330,-200.0,0.00018304,2]
[388870783,1759446641340,-1680.0,0.00018336,2]
[388870784,1759446641770,-398.0,0.00018356,2]
[388870785,1759446641814,-795.29,0.00018369,2]
[388870786,1759446641824,-2500.0,0.0001837,2]
[388870787,1759446641834,-2000.0,0.0001837,2]
[388870788,1759446641843,-195.0,0.0001837,2]
[388870789,1759446641853,-250.0,0.0001837,2]